fUSD/lending_fUSD_20260219
["ID","MTS","AMOUNT","RATE_DAILY","PERIOD"]
[405968788,1771474240725,-250.0,0.00011684,2]
[405968789,1771474240737,-250.0,0.00011684,2]
[405968790,1771474240747,-277.35679052,0.00011684,2]
[405968791,1771474240758,-250.0,0.00011684,2]
[405968792,1771474240768,-250.0,0.00011684,2]
[405968793,1771474240778,-174.61919141,0.00011684,2]
[405968794,1771474240788,-250.0,0.00011684,2]
[405968795,1771474240798,-250.0,0.00011684,2]
[405968796,1771474240807,-250.0,0.00011684,2]
[405968797,1771474240816,-259.05495974,0.00011684,2]
[405968798,1771474240825,-500.0,0.00011684,2]
[405968799,1771474240837,-500.0,0.00011684,2]
[405968800,1771474240848,-500.0,0.00011684,2]
[405968801,1771474240857,-176.96955002,0.00011684,2]
[405968802,1771474240866,-693.3919763,0.00011684,2]
[405968803,1771474240877,-500.0,0.00011684,2]
[405968804,1771474240887,-500.0,0.00011684,2]
[405968805,1771474240897,-500.0,0.00011684,2]
[405968806,1771474240906,-500.0,0.00011684,2]
[405968807,1771474240916,-500.0,0.00011684,2]
[405968808,1771474240926,-500.0,0.00011684,2]
[405968809,1771474240935,-500.0,0.00011684,2]
[405968810,1771474240944,-500.0,0.00011684,2]
[405968811,1771474240955,-151.0,0.00011684,2]
[405968812,1771474240964,-1000.0,0.00011684,2]
[405968813,1771474240974,-500.0,0.00011684,2]
[405968814,1771474240983,-1000.0,0.00011684,2]
[405968815,1771474240992,-500.0,0.00011684,2]
[405968816,1771474241002,-1000.0,0.00011684,2]
[405968817,1771474241012,-500.0,0.00011684,2]
[405968818,1771474241021,-500.0,0.00011684,2]
[405968819,1771474241031,-500.0,0.00011684,2]
[405968820,1771474241041,-1000.0,0.00011684,2]
[405968821,1771474241050,-500.0,0.00011684,2]
[405968822,1771474241060,-167.4563313,0.00011684,2]
[405968823,1771474241069,-500.0,0.00011684,2]
[405968824,1771474241079,-500.0,0.00011684,2]
[405968825,1771474241088,-1000.0,0.00011684,2]
[405968826,1771474241097,-500.0,0.00011684,2]
[405968827,1771474241107,-696.03895248,0.00011684,2]
[405968828,1771474241116,-250.0,0.00011684,2]
[405968829,1771474241125,-292.42866958,0.00011684,2]
[405968830,1771474241135,-721.12765535,0.00011684,2]
[405968831,1771474241144,-209.40437684,0.00011684,2]
[405968832,1771474241154,-162.380719,0.00011684,2]
[405968833,1771474241164,-200.0,0.00011689,2]
[405968834,1771474241175,-200.0,0.00011689,2]
[405968835,1771474241184,-200.0,0.00011689,2]
[405968836,1771474241193,-719.04747942,0.00011739,2]
[405968837,1771474241201,-151.0,0.00011739,2]
[405968838,1771474241211,-745.65223616,0.00011794,2]
[405968839,1771474241225,-151.0,0.00011794,2]
[405968840,1771474241234,-166.66,0.00011848,2]
[405968841,1771474241243,-773.2413689,0.00011849,2]
[405968842,1771474241252,-151.0,0.00011849,2]
[405968843,1771474241263,-312.04,0.00011863,2]
[405968844,1771474241272,-156.53,0.00011872,2]
[405968845,1771474241282,-801.85129955,0.00011904,2]
[405968846,1771474241293,-151.0,0.00011904,2]
[405968847,1771474241303,-151.0,0.00011927,2]
[405968848,1771474241312,-1873.90499193,0.0001193,2]
[405968849,1771474241322,-3500.0,0.0001193,2]
[405968850,1771474241331,-2090.48855903,0.0001193,2]
[405968851,1771474241341,-6622.7349909,0.00011932,2]
[405968852,1771474241350,-482.13601817,0.00011937,2]
[405968853,1771474241359,-831.51979763,0.00011959,2]
[405968854,1771474241368,-151.0,0.00011959,2]
[405968855,1771474241377,-862.28603014,0.00012014,2]
[405968856,1771474241386,-151.0,0.00012014,2]
[405968857,1771474241395,-894.19061326,0.00012069,2]
[405968858,1771474241404,-151.0,0.00012069,2]
[405968859,1771474241413,-9999.99,0.00012087,2]
[405968860,1771474241423,-927.27566595,0.00012124,2]
[405968861,1771474241432,-233.11431957,0.00012124,2]
[405968862,1771474241441,-961.58486559,0.00012179,2]
[405968863,1771474241450,-287.61899177,0.00012232,2]
[405968864,1771474241459,-181.08010149,0.00012232,2]
[405968865,1771474241468,-217.15233878,0.00012232,2]
[405968866,1771474241478,-997.16350561,0.00012234,2]
[405968867,1771474241487,-9347.34855396,0.00012293,2]
[405968868,1771474241496,-156.53,0.00012329,2]
[405968869,1771474241505,-5174.64026179,0.00012335,2]
[405968870,1771474241515,-411.470592,0.0001235,2]
[405968871,1771474241524,-2076.550183,0.0001235,2]
[405968872,1771474241534,-1600.0,0.00012373,2]
[405968873,1771474241543,-201.58950617,0.00012411,2]
[405968874,1771474241552,-954.89670108,0.00012478,2]
[405968875,1771474241561,-160.0,0.00012586,2]
[405968876,1771474241570,-173.66088786,0.00012586,2]
[405968877,1771474241580,-150.0,0.00012721,2]
[405968878,1771474241590,-1500.0,0.00012764,2]
[405968879,1771474241600,-298.26089446,0.0001278,2]
[405968880,1771474241610,-187.78006525,0.0001278,2]
[405968881,1771474241620,-262.35118917,0.0001278,2]
[405968882,1771474241631,-168.3888056,0.00013053,2]
[405968883,1771474241641,-482.13601817,0.0001313,2]
[405968884,1771474241651,-5713.28232864,0.00013131,2]
[405968885,1771474241661,-434.05414231,0.00013183,2]
[405968886,1771474241670,-9347.34855396,0.00013227,2]
[405968887,1771474241679,-215.0,0.00013231,2]
[405968888,1771474241688,-150.097,0.00013231,2]
[405968889,1771474241698,-150.0,0.00013231,2]
[405968890,1771474241707,-150.0,0.00013231,2]
[405968891,1771474241718,-1164.0,0.00013231,2]
[405968892,1771474241728,-617.0,0.00013231,2]
[405968893,1771474241738,-1351.773,0.00013231,2]
[405968894,1771474241747,-3500.756,0.00013231,2]
[405968895,1771474241756,-1275.0,0.00013231,2]
[405968896,1771474241766,-150.22,0.00013231,2]
[405968897,1771474241776,-1212.524,0.00013231,2]
[405968898,1771474241785,-5974.0,0.00013231,2]
[405968899,1771474241794,-2453.0,0.00013231,2]
[405968900,1771474241805,-413.0,0.00013231,2]
[405968901,1771474241815,-5174.64026179,0.00013262,2]
[405968902,1771474241825,-411.93562072,0.00013328,2]
[405968903,1771474241836,-194.72792766,0.00013328,2]
[405968904,1771474241845,-1475.1273,0.00013422,2]
[405968905,1771474241855,-3240.0,0.00013425,2]
[405968906,1771474241864,-200.37,0.0001348,2]
[405968907,1771474241873,-32855.2885,0.00013598,2]
[405968908,1771474241884,-1000.0,0.00013598,2]
[405968909,1771474241896,-500.0,0.00013698,2]
[405968910,1771474241905,-500.0,0.00013698,2]
[405968911,1771474241915,-500.0,0.00013698,2]
[405968912,1771474241927,-500.0,0.00013698,2]
[405968913,1771474241936,-500.0,0.00013698,2]
[405968914,1771474241947,-500.0,0.00013698,2]
[405968915,1771474241956,-500.0,0.00013698,2]
[405968916,1771474241966,-500.0,0.00013698,2]
[405968917,1771474241975,-500.0,0.00013698,2]
[405968918,1771474241984,-500.0,0.00013698,2]
[405968919,1771474241994,-183.71370311,0.00013698,2]
[405968920,1771474242004,-500.0,0.00013698,2]
[405968921,1771474242013,-500.0,0.00013698,2]
[405968922,1771474242023,-500.0,0.00013698,2]
[405968923,1771474242033,-500.0,0.00013698,2]
[405968924,1771474242042,-500.0,0.00013698,2]
[405968925,1771474242051,-500.0,0.00013698,2]
[405968926,1771474242061,-500.0,0.00013698,2]
[405968927,1771474242071,-500.0,0.00013698,2]
[405968928,1771474242080,-500.0,0.00013698,2]
[405968929,1771474242089,-500.0,0.00013698,2]
[405968930,1771474242098,-500.0,0.00013698,2]
[405968931,1771474242107,-390.80673406,0.00013698,2]
[405968932,1771474242117,-500.0,0.00013698,2]
[405968933,1771474242126,-503.0319682,0.00013698,2]
[405968934,1771474242136,-502.20552122,0.00013698,2]
[405968935,1771474242145,-518.38038418,0.00013698,2]
[405968936,1771474242155,-500.0,0.00013698,2]
[405968937,1771474242164,-500.0,0.00013698,2]
[405968938,1771474242174,-500.0,0.00013698,2]
[405968939,1771474242183,-500.0,0.00013698,2]
[405968940,1771474242192,-500.0,0.00013698,2]
[405968941,1771474242201,-500.0,0.00013698,2]
[405968942,1771474242211,-500.0,0.00013698,2]
[405968943,1771474242224,-500.0,0.00013698,2]
[405968944,1771474242234,-500.0,0.00013698,2]
[405968945,1771474242244,-500.0,0.00013698,2]
[405968946,1771474242253,-500.0,0.00013698,2]
[405968947,1771474242262,-500.0,0.00013698,2]
[405968948,1771474242271,-500.0,0.00013698,2]
[405968949,1771474242281,-500.0,0.00013698,2]
[405968950,1771474242292,-500.0,0.00013698,2]
[405968951,1771474242303,-500.0,0.00013698,2]
[405968952,1771474242312,-500.0,0.00013698,2]
[405968953,1771474242322,-500.0,0.00013698,2]
[405968954,1771474242331,-500.0,0.00013698,2]
[405968955,1771474242340,-500.0,0.00013698,2]
[405968956,1771474242349,-500.0,0.00013698,2]
[405968957,1771474242358,-500.0,0.00013698,2]
[405968958,1771474242368,-500.0,0.00013698,2]
[405968959,1771474242377,-500.0,0.00013698,2]
[405968960,1771474242386,-500.0,0.00013698,2]
[405968961,1771474242395,-500.0,0.00013698,2]
[405968962,1771474242404,-500.0,0.00013698,2]
[405968963,1771474242414,-500.0,0.00013698,2]
[405968964,1771474242423,-500.0,0.00013698,2]
[405968965,1771474242434,-500.0,0.00013698,2]
[405968966,1771474242443,-500.0,0.00013698,2]
[405968967,1771474242452,-500.0,0.00013698,2]
[405968968,1771474242461,-312.49323643,0.00013698,2]
[405968969,1771474242470,-500.0,0.00013698,2]
[405968970,1771474242479,-500.0,0.00013698,2]
[405968971,1771474242489,-500.0,0.00013698,2]
[405968972,1771474242498,-500.0,0.00013698,2]
[405968973,1771474242507,-500.0,0.00013698,2]
[405968974,1771474242517,-500.0,0.00013698,2]
[405968975,1771474242526,-500.0,0.00013698,2]
[405968976,1771474242535,-500.0,0.00013698,2]
[405968977,1771474242544,-500.0,0.00013698,2]
[405968978,1771474242553,-500.0,0.00013698,2]
[405968979,1771474242562,-500.0,0.00013698,2]
[405968980,1771474242571,-500.0,0.00013698,2]
[405968981,1771474242580,-500.0,0.00013698,2]
[405968982,1771474242589,-500.0,0.00013698,2]
[405968983,1771474242598,-500.0,0.00013698,2]
[405968984,1771474242608,-500.0,0.00013698,2]
[405968985,1771474242617,-500.0,0.00013698,2]
[405968986,1771474242626,-500.0,0.00013698,2]
[405968987,1771474242635,-500.0,0.00013698,2]
[405968988,1771474242644,-500.0,0.00013698,2]
[405968989,1771474242655,-500.0,0.00013698,2]
[405968990,1771474242664,-464.26092856,0.00013698,2]
[405968992,1771474242674,-500.0,0.00013698,2]
[405968994,1771474242683,-500.0,0.00013698,2]
[405968996,1771474242692,-500.0,0.00013698,2]
[405968998,1771474242701,-199.95184886,0.00013698,2]
[405968999,1771474242710,-500.0,0.00013698,2]
[405969000,1771474242719,-500.0,0.00013698,2]
[405969001,1771474242728,-500.0,0.00013698,2]
[405969002,1771474242737,-559.89757707,0.00013698,2]
[405969003,1771474242746,-500.0,0.00013698,2]
[405969004,1771474242755,-500.0,0.00013698,2]
[405969005,1771474242764,-500.0,0.00013698,2]
[405969006,1771474242774,-500.0,0.00013698,2]
[405969007,1771474242783,-500.0,0.00013698,2]
[405969008,1771474242792,-509.75707769,0.00013698,2]
[405969009,1771474242800,-500.0,0.00013698,2]
[405969010,1771474242809,-500.0,0.00013698,2]
[405969011,1771474242819,-500.0,0.00013698,2]
[405969012,1771474242828,-500.0,0.00013698,2]
[405969013,1771474242838,-500.0,0.00013698,2]
[405969014,1771474242847,-500.0,0.00013698,2]
[405969015,1771474242856,-500.0,0.00013698,2]
[405969016,1771474242865,-500.0,0.00013698,2]
[405969017,1771474242874,-466.15286834,0.00013698,2]
[405969018,1771474242883,-500.0,0.00013698,2]
[405969019,1771474242892,-516.24696625,0.00013698,2]
[405969020,1771474242901,-500.0,0.00013698,2]
[405969021,1771474242910,-521.63324088,0.00013698,2]
[405969022,1771474242919,-500.0,0.00013698,2]
[405969023,1771474242928,-500.0,0.00013698,2]
[405969024,1771474242938,-500.0,0.00013698,2]
[405969025,1771474242947,-500.0,0.00013698,2]
[405969026,1771474242957,-500.0,0.00013698,2]
[405969027,1771474242967,-500.0,0.00013698,2]
[405969028,1771474242976,-500.0,0.00013698,2]
[405969029,1771474242985,-500.0,0.00013698,2]
[405969030,1771474242994,-326.88287902,0.00013698,2]
[405969031,1771474243003,-500.0,0.00013698,2]
[405969032,1771474243013,-500.0,0.00013698,2]
[405969033,1771474243022,-500.0,0.00013698,2]
[405969034,1771474243032,-500.0,0.00013698,2]
[405969035,1771474243041,-500.0,0.00013698,2]
[405969036,1771474243050,-500.0,0.00013698,2]
[405969037,1771474243060,-500.0,0.00013698,2]
[405969038,1771474243070,-512.07352684,0.00013698,2]
[405969039,1771474243080,-500.0,0.00013698,2]
[405969040,1771474243090,-500.0,0.00013698,2]
[405969041,1771474243100,-500.0,0.00013698,2]
[405969042,1771474243109,-500.0,0.00013698,2]
[405969043,1771474243118,-500.0,0.00013698,2]
[405969044,1771474243127,-500.0,0.00013698,2]
[405969045,1771474243137,-500.0,0.00013698,2]
[405969046,1771474243147,-500.0,0.00013698,2]
[405969047,1771474243156,-500.0,0.00013698,2]
[405969048,1771474243166,-500.0,0.00013698,2]
[405969049,1771474243175,-500.0,0.00013698,2]
[405969050,1771474243185,-500.0,0.00013698,2]
[405969051,1771474243194,-500.0,0.00013698,2]
[405969052,1771474243203,-500.0,0.00013698,2]
[405969053,1771474243212,-500.0,0.00013698,2]
[405969054,1771474243225,-500.0,0.00013698,2]
[405969055,1771474243236,-500.0,0.00013698,2]
[405969056,1771474243245,-500.0,0.00013698,2]
[405969057,1771474243253,-500.0,0.00013698,2]
[405969058,1771474243264,-500.0,0.00013698,2]
[405969059,1771474243273,-500.0,0.00013698,2]
[405969060,1771474243282,-500.0,0.00013698,2]
[405969061,1771474243447,-500.0,0.00013698,2]
[405969062,1771474243456,-500.0,0.00013698,2]
[405969063,1771474243466,-500.0,0.00013698,2]
[405969064,1771474243475,-500.0,0.00013698,2]
[405969065,1771474243484,-500.0,0.00013698,2]
[405969066,1771474243494,-500.0,0.00013698,2]
[405969067,1771474243503,-500.0,0.00013698,2]
[405969068,1771474243512,-500.0,0.00013698,2]
[405969069,1771474243522,-500.0,0.00013698,2]
[405969070,1771474243531,-500.0,0.00013698,2]
[405969071,1771474243541,-500.0,0.00013698,2]
[405969072,1771474243550,-500.0,0.00013698,2]
[405969073,1771474243558,-500.0,0.00013698,2]
[405969074,1771474243568,-500.0,0.00013698,2]
[405969075,1771474243577,-500.0,0.00013698,2]
[405969076,1771474243587,-500.0,0.00013698,2]
[405969077,1771474243596,-500.0,0.00013698,2]
[405969078,1771474243605,-500.0,0.00013698,2]
[405969079,1771474243614,-500.0,0.00013698,2]
[405969080,1771474243623,-500.0,0.00013698,2]
[405969081,1771474243632,-500.0,0.00013698,2]
[405969082,1771474243641,-500.0,0.00013698,2]
[405969083,1771474243650,-500.0,0.00013698,2]
[405969084,1771474243660,-500.0,0.00013698,2]
[405969085,1771474243672,-500.0,0.00013698,2]
[405969086,1771474243682,-500.0,0.00013698,2]
[405969087,1771474243694,-500.0,0.00013698,2]
[405969088,1771474243706,-500.0,0.00013698,2]
[405969089,1771474243716,-500.0,0.00013698,2]
[405969090,1771474243724,-500.0,0.00013698,2]
[405969091,1771474243734,-500.0,0.00013698,2]
[405969092,1771474243743,-500.0,0.00013698,2]
[405969093,1771474243752,-392.14722517,0.00013698,2]
[405969094,1771474243761,-500.0,0.00013698,2]
[405969095,1771474243771,-500.0,0.00013698,2]
[405969096,1771474243781,-500.0,0.00013698,2]
[405969097,1771474243790,-500.0,0.00013698,2]
[405969098,1771474243799,-500.0,0.00013698,2]
[405969099,1771474243809,-500.0,0.00013698,2]
[405969100,1771474243818,-500.0,0.00013698,2]
[405969101,1771474243830,-500.0,0.00013698,2]
[405969102,1771474243841,-500.0,0.00013698,2]
[405969103,1771474243852,-500.0,0.00013698,2]
[405969104,1771474243862,-500.0,0.00013698,2]
[405969105,1771474243873,-500.0,0.00013698,2]
[405969106,1771474243883,-500.0,0.00013698,2]
[405969107,1771474243894,-500.0,0.00013698,2]
[405969108,1771474243904,-500.0,0.00013698,2]
[405969109,1771474243913,-500.0,0.00013698,2]
[405969110,1771474243923,-500.0,0.00013698,2]
[405969111,1771474243932,-500.0,0.00013698,2]
[405969112,1771474243941,-500.0,0.00013698,2]
[405969113,1771474243951,-500.0,0.00013698,2]
[405969114,1771474243960,-500.0,0.00013698,2]
[405969115,1771474243969,-500.0,0.00013698,2]
[405969116,1771474243979,-500.0,0.00013698,2]
[405969117,1771474243989,-500.0,0.00013698,2]
[405969118,1771474244000,-500.0,0.00013698,2]
[405969119,1771474244009,-500.0,0.00013698,2]
[405969120,1771474244018,-500.0,0.00013698,2]
[405969121,1771474244027,-500.0,0.00013698,2]
[405969122,1771474244037,-500.0,0.00013698,2]
[405969123,1771474244046,-500.0,0.00013698,2]
[405969124,1771474244055,-500.0,0.00013698,2]
[405969125,1771474244064,-500.0,0.00013698,2]
[405969126,1771474244074,-500.0,0.00013698,2]
[405969127,1771474244083,-500.0,0.00013698,2]
[405969128,1771474244093,-500.0,0.00013698,2]
[405969129,1771474244102,-500.0,0.00013698,2]
[405969130,1771474244111,-500.0,0.00013698,2]
[405969131,1771474244120,-500.0,0.00013698,2]
[405969132,1771474244130,-500.0,0.00013698,2]
[405969133,1771474244138,-500.0,0.00013698,2]
[405969134,1771474244148,-500.0,0.00013698,2]
[405969135,1771474244157,-500.0,0.00013698,2]
[405969136,1771474244168,-212.36587913,0.00013698,2]
[405969137,1771474244179,-151.0,0.00013698,2]
[405969138,1771474244188,-500.0,0.00013698,2]
[405969139,1771474244197,-318.096556,0.00013699,2]
[405969140,1771474244207,-318.096556,0.00013699,2]
[405969141,1771474244221,-318.096556,0.00013699,2]
[405969142,1771474244231,-318.096556,0.00013699,2]
[405969143,1771474244241,-500.24648354,0.00013699,2]
[405969144,1771474244252,-500.87753174,0.00013699,2]
[405969145,1771474244263,-163.61666701,0.00013699,2]
[405969146,1771474244274,-503.81704634,0.00013699,2]
[405969147,1771474244283,-500.88752835,0.00013699,2]
[405969148,1771474244297,-501.06979022,0.00013699,2]
[405969149,1771474244308,-500.0,0.00013699,2]
[405969150,1771474244319,-523.83521104,0.00013699,2]
[405969151,1771474244328,-160.99202719,0.00013699,2]
[405969152,1771474244338,-500.0,0.00013699,2]
[405969153,1771474244347,-500.86784162,0.00013699,2]
[405969154,1771474244356,-162.01833843,0.00013699,2]
[405969155,1771474244365,-500.0,0.00013699,2]
[405969156,1771474244374,-163.93641523,0.00013699,2]
[405969157,1771474244383,-500.0,0.00013699,2]
[405969158,1771474244392,-501.41044564,0.00013699,2]
[405969159,1771474244402,-505.83454501,0.00013699,2]
[405969160,1771474244412,-501.54147978,0.00013699,2]
[405969161,1771474244422,-501.58553272,0.00013699,2]
[405969162,1771474244432,-500.85988658,0.00013699,2]
[405969163,1771474244441,-646.21772903,0.00013699,2]
[405969164,1771474244450,-308.35834573,0.00013699,2]
[405969165,1771474244460,-500.4315253,0.00013699,2]
[405969166,1771474244469,-161.93579231,0.00013699,2]
[405969167,1771474244478,-337.4393481,0.00013699,2]
[405969168,1771474244488,-500.0,0.00013699,2]
[405969169,1771474244497,-500.95146285,0.00013699,2]
[405969170,1771474244507,-500.19719361,0.00013699,2]
[405969171,1771474244516,-163.84269756,0.00013699,2]
[405969172,1771474244526,-160.74700191,0.00013699,2]
[405969173,1771474244535,-500.87628951,0.00013699,2]
[405969174,1771474244545,-503.0862257,0.00013699,2]
[405969175,1771474244554,-502.58954395,0.00013699,2]
[405969176,1771474244563,-502.26618351,0.00013699,2]
[405969177,1771474244572,-162.46092801,0.00013699,2]
[405969178,1771474244582,-505.505064,0.00013699,2]
[405969179,1771474244591,-500.0,0.00013699,2]
[405969180,1771474244600,-471.10460984,0.00013699,2]
[405969181,1771474244609,-506.11247576,0.00013699,2]
[405969182,1771474244618,-500.51023068,0.00013699,2]
[405969183,1771474244627,-500.0,0.00013699,2]
[405969184,1771474244636,-502.04789139,0.00013699,2]
[405969185,1771474244646,-200.0,0.00013788,2]
[405969186,1771474244656,-201.93286099,0.00013876,2]
[405969187,1771474244665,-666.0,0.00013887,2]
[405969188,1771474244675,-666.0,0.00013887,2]
[405969189,1771474244684,-151.0,0.00013887,2]
[405969190,1771474244693,-152.0,0.00013888,2]
[405969191,1771474244702,-1509.0,0.00013888,2]
[405969192,1771474244711,-152.0,0.00013888,2]
[405969193,1771474244720,-1509.0,0.00013888,2]
[405969194,1771474244728,-152.0,0.00013888,2]
[405969195,1771474244738,-1509.0,0.00013888,2]
[405969196,1771474244747,-152.0,0.00013888,2]
[405969197,1771474244758,-153.0,0.00013888,2]
[405969198,1771474244767,-1509.0,0.00013888,2]
[405969199,1771474244776,-152.0,0.00013888,2]
[405969200,1771474244787,-153.0,0.00013888,2]
[405969201,1771474244796,-1509.0,0.00013888,2]
[405969202,1771474244805,-152.0,0.00013888,2]
[405969203,1771474244814,-153.0,0.00013888,2]
[405969204,1771474244823,-1509.0,0.00013888,2]
[405969205,1771474244833,-152.0,0.00013888,2]
[405969206,1771474244842,-153.0,0.00013888,2]
[405969207,1771474244851,-1509.0,0.00013888,2]
[405969208,1771474244860,-152.0,0.00013888,2]
[405969209,1771474244869,-153.0,0.00013888,2]
[405969210,1771474244879,-1509.0,0.00013888,2]
[405969211,1771474244888,-152.0,0.00013888,2]
[405969212,1771474244896,-1509.0,0.00013888,2]
[405969213,1771474244906,-153.0,0.00013888,2]
[405969214,1771474244916,-152.0,0.00013888,2]
[405969215,1771474244926,-153.0,0.00013888,2]
[405969216,1771474244935,-1509.0,0.00013888,2]
[405969217,1771474244945,-152.0,0.00013888,2]
[405969218,1771474244954,-153.0,0.00013888,2]
[405969219,1771474244963,-1509.0,0.00013888,2]
[405969220,1771474244972,-152.0,0.00013888,2]
[405969221,1771474244981,-153.0,0.00013888,2]
[405969222,1771474244991,-1509.0,0.00013888,2]
[405969223,1771474245000,-152.0,0.00013888,2]
[405969224,1771474245009,-153.0,0.00013888,2]
[405969225,1771474245018,-1509.0,0.00013888,2]
[405969226,1771474245027,-152.0,0.00013888,2]
[405969227,1771474245037,-153.0,0.00013888,2]
[405969228,1771474245046,-1509.0,0.00013888,2]
[405969229,1771474245055,-152.0,0.00013888,2]
[405969230,1771474245064,-153.0,0.00013888,2]
[405969231,1771474245074,-159.0,0.00013888,2]
[405969232,1771474245083,-1509.0,0.00013888,2]
[405969233,1771474245092,-152.0,0.00013888,2]
[405969234,1771474245101,-153.0,0.00013888,2]
[405969235,1771474245110,-159.0,0.00013888,2]
[405969236,1771474245119,-1509.0,0.00013888,2]
[405969237,1771474245128,-152.0,0.00013888,2]
[405969238,1771474245137,-153.0,0.00013888,2]
[405969239,1771474245147,-159.0,0.00013888,2]
[405969240,1771474245156,-1509.0,0.00013888,2]
[405969241,1771474245165,-153.0,0.00013888,2]
[405969242,1771474245176,-152.0,0.00013888,2]
[405969243,1771474245185,-159.0,0.00013888,2]
[405969244,1771474245194,-1509.0,0.00013888,2]
[405969245,1771474245203,-153.0,0.00013888,2]
[405969246,1771474245213,-152.0,0.00013888,2]
[405969247,1771474245223,-159.0,0.00013888,2]
[405969248,1771474245233,-1509.0,0.00013888,2]
[405969249,1771474245242,-153.0,0.00013888,2]
[405969250,1771474245251,-152.0,0.00013888,2]
[405969251,1771474245262,-1509.0,0.00013888,2]
[405969252,1771474245271,-153.0,0.00013888,2]
[405969253,1771474245281,-152.0,0.00013888,2]
[405969254,1771474245291,-1509.0,0.00013888,2]
[405969255,1771474245300,-153.0,0.00013888,2]
[405969256,1771474245308,-152.0,0.00013888,2]
[405969257,1771474245317,-1509.0,0.00013888,2]
[405969258,1771474245326,-153.0,0.00013888,2]
[405969259,1771474245335,-152.0,0.00013888,2]
[405969260,1771474245344,-1509.0,0.00013888,2]
[405969261,1771474245353,-153.0,0.00013888,2]
[405969262,1771474245362,-152.0,0.00013888,2]
[405969263,1771474245371,-1509.0,0.00013888,2]
[405969264,1771474245380,-153.0,0.00013888,2]
[405969265,1771474245389,-152.0,0.00013888,2]
[405969266,1771474245398,-1509.0,0.00013888,2]
[405969267,1771474245408,-153.0,0.00013888,2]
[405969268,1771474245417,-152.0,0.00013888,2]
[405969269,1771474245426,-1509.0,0.00013888,2]
[405969270,1771474245435,-153.0,0.00013888,2]
[405969271,1771474245445,-152.0,0.00013888,2]
[405969272,1771474245454,-1509.0,0.00013888,2]
[405969273,1771474245463,-153.0,0.00013888,2]
[405969274,1771474245473,-152.0,0.00013888,2]
[405969275,1771474245482,-1509.0,0.00013888,2]
[405969276,1771474245493,-153.0,0.00013888,2]
[405969277,1771474245503,-152.0,0.00013888,2]
[405969278,1771474245512,-1509.0,0.00013888,2]
[405969279,1771474245522,-153.0,0.00013888,2]
[405969280,1771474245531,-152.0,0.00013888,2]
[405969281,1771474245541,-1509.0,0.00013888,2]
[405969282,1771474245551,-153.0,0.00013888,2]
[405969283,1771474245561,-152.0,0.00013888,2]
[405969284,1771474245571,-1509.0,0.00013888,2]
[405969285,1771474245580,-153.0,0.00013888,2]
[405969286,1771474245589,-152.0,0.00013888,2]
[405969287,1771474245599,-1509.0,0.00013888,2]
[405969288,1771474245609,-153.0,0.00013888,2]
[405969289,1771474245618,-152.0,0.00013888,2]
[405969290,1771474245628,-153.0,0.00013888,2]
[405969291,1771474245637,-1509.0,0.00013888,2]